bitfinex/quotes_SOLUSD_20241029
["timestamp","ask_amount","ask_price","bid_price","bid_amount"]
[1730214349646,0.1,179.63,179.61,26.99171656]
[1730214349823,0.1,179.63,179.62,7.50511656]
[1730214350335,0.1,179.63,179.61,26.99171656]
[1730214350336,0.1,179.62,179.61,26.99171656]
[1730214351327,0.1,179.65,179.61,26.99171656]
[1730214351547,0.1,179.67,179.64,7.50511656]
[1730214351832,0.1,179.67,179.61,47.3246]
[1730214351833,0.1,179.67,179.66,7.50511656]
[1730214352932,0.1,179.68,179.66,7.50511656]
[1730214353126,0.1,179.68,179.67,7.50511656]
[1730214353520,0.1,179.69,179.67,7.50511656]
[1730214353725,0.1,179.7,179.68,7.50511656]
[1730214353726,0.2,179.7,179.68,7.50511656]
[1730214353910,0.1,179.72,179.69,7.50511656]
[1730214354237,0.1,179.72,179.71,7.50511656]
[1730214354414,0.1,179.73,179.71,7.50511656]
[1730214354711,0.2,179.73,179.72,7.50511656]
[1730214354913,0.2,179.73,179.72,13.06931656]
[1730214355709,0.1,179.73,179.72,13.06931656]
[1730214355915,0.1,179.74,179.72,26.97981656]
[1730214356142,0.1,179.73,179.72,19.4747]
[1730214356328,0.1,179.73,179.72,26.97981656]
[1730214357621,0.1,179.74,179.72,26.97981656]
[1730214357834,0.1,179.73,179.72,26.97981656]
[1730214358005,0.2,179.73,179.72,19.4747]
[1730214361329,0.1,179.71,179.7,7.50511656]
[1730214362232,0.1,179.73,179.7,7.50511656]
[1730214362415,0.1,179.73,179.72,7.50511656]
[1730214362612,0.1,179.75,179.72,7.50511656]
[1730214362817,0.2,179.75,179.74,7.50511656]
[1730214363420,0.2,179.75,179.74,5.5635]
[1730214363747,0.2,179.74,179.73,19.4732]
[1730214364036,0.1,179.7,179.69,26.98231656]
[1730214364413,0.2,179.7,179.69,19.4772]
[1730214367021,0.2,179.7,179.69,31.19002118]
[1730214367446,0.1,179.7,179.69,31.19002118]
[1730214367854,0.2,179.7,179.69,31.19002118]
[1730214368637,0.1,179.71,179.69,31.19002118]
[1730214368845,0.1,179.72,179.7,11.71282118]
[1730214369044,0.1,179.74,179.72,19.4747]
[1730214369244,0.1,179.74,179.73,11.71282118]
[1730214369443,0.1,179.76,179.73,11.71282118]
[1730214369630,0.1,179.76,179.75,11.71282118]
[1730214369950,0.2,179.76,179.75,11.71282118]
[1730214371248,0.2,179.76,179.75,17.27602118]
[1730214371451,0.2,179.76,179.75,5.5632]
[1730214374656,0.2,179.76,179.74,19.4724]
[1730214375022,0.2,179.75,179.74,19.4724]
[1730214376629,0.2,179.76,179.74,25.62172118]
[1730214378769,0.1,179.75,179.74,31.18522118]
[1730214378936,0.1,179.77,179.74,31.18522118]
[1730214379141,0.1,179.77,179.75,11.71282118]
[1730214379451,0.1,179.76,179.75,11.71282118]
[1730214379747,0.1,179.77,179.75,11.71282118]
[1730214379951,0.1,179.78,179.76,11.71282118]
[1730214380255,0.1,179.78,179.77,11.71282118]
[1730214380459,0.2,179.78,179.77,11.71282118]
[1730214380833,0.2,179.78,179.77,17.27542118]
[1730214381133,0.1,179.78,179.77,17.27542118]
[1730214381344,0.2,179.78,179.77,17.27542118]
[1730214381834,0.2,179.78,179.77,5.5626]
[1730214382633,11.91282118,179.78,179.77,5.5626]
[1730214382752,0.1,179.76,179.75,19.4714]
[1730214383339,0.2,179.76,179.75,19.4714]
[1730214384253,11.91282118,179.76,179.75,19.4714]
[1730214384665,0.1,179.75,179.74,27.8179]
[1730214387533,0.1,179.73,179.72,27.821]
[1730214387759,0.2,179.73,179.72,27.821]
[1730214388843,0.2,179.73,179.72,45.09802118]
[1730214390266,0.2,179.73,179.72,27.821]
[1730214390453,0.1,179.74,179.72,39.53382118]
[1730214390754,0.1,179.74,179.73,11.71282118]
[1730214392046,0.1,179.76,179.73,23.42564236]
[1730214392248,0.1,179.78,179.75,11.71282118]
[1730214392556,0.1,179.78,179.77,11.71282118]
[1730214394066,0.1,179.78,179.77,17.27542118]
[1730214398467,0.1,179.79,179.77,26.9564875]
[1730214398763,0.1,179.79,179.78,7.4872875]
[1730214400169,0.1,179.79,179.78,5.5623]
[1730214400350,0.2,179.79,179.78,5.5623]
[1730214401257,0.2,179.78,179.77,19.4691]
[1730214401477,7.6872875,179.78,179.77,19.4691]
[1730214402060,0.1,179.75,179.73,7.4872875]
[1730214402260,0.1,179.75,179.74,19.4724]
[1730214402557,0.1,179.75,179.74,26.9596875]
[1730214402760,0.1,179.75,179.74,31.17838487]
[1730214404580,0.1,179.75,179.74,19.4724]
[1730214405374,0.1,179.75,179.74,31.17838487]
[1730214406483,0.1,179.75,179.74,19.4724]
[1730214406775,0.2,179.75,179.74,19.4724]
[1730214407853,0.2,179.75,179.74,13.9089]
[1730214411267,0.1,179.71,179.7,19.4768]
[1730214411990,0.2,179.71,179.7,13.912]
[1730214412185,11.90598487,179.71,179.7,13.912]
[1730214413054,11.90598487,179.71,179.67,19.48]
[1730214413482,0.1,179.68,179.67,19.48]
[1730214414287,0.2,179.68,179.67,31.18598487]
[1730214415575,0.2,179.68,179.67,19.48]
[1730214416379,0.2,179.68,179.67,13.9143]
[1730214416958,0.1,179.63,179.62,5.5673]
[1730214417288,0.1,179.59,179.58,31.19578487]
[1730214419869,0.2,179.62,179.58,31.19578487]
[1730214420076,0.2,179.62,179.61,11.70598487]
[1730214420275,0.2,179.64,179.61,11.70598487]
[1730214420593,0.2,179.63,179.58,75.1752]
[1730214421102,0.2,179.63,179.62,11.70598487]
[1730214421627,0.1,179.61,179.59,11.70598487]
[1730214421670,0.1,179.61,179.6,11.70598487]
[1730214422282,0.2,179.61,179.6,11.70598487]
[1730214422470,0.2,179.59,179.58,53.46998487]
[1730214422874,0.2,179.59,179.58,41.764]
[1730214424087,0.2,179.59,179.58,47.3325]
[1730214424999,0.2,179.59,179.58,59.03848487]
[1730214426594,0.2,179.59,179.58,47.3325]
[1730214426894,0.2,179.59,179.58,19.4898]
[1730214428187,0.2,179.59,179.58,13.9213]
[1730214428588,0.2,179.59,179.58,25.62728487]
[1730214429278,0.2,179.59,179.58,13.9213]
[1730214429879,0.2,179.59,179.58,25.62728487]
[1730214430683,0.2,179.59,179.58,31.19578487]
[1730214431000,11.90598487,179.59,179.58,19.4898]
[1730214431227,0.1,179.54,179.53,45.12628487]
[1730214431377,0.1,179.54,179.53,33.4203]
[1730214431610,0.1,179.54,179.53,45.12628487]
[1730214432478,0.2,179.55,179.53,59.05148487]
[1730214432779,0.1,179.55,179.54,11.70598487]
[1730214432985,0.2,179.55,179.54,11.70598487]
[1730214433900,0.2,179.55,179.54,17.27568487]
[1730214434299,0.1,179.56,179.54,31.20008487]
[1730214434490,0.2,179.55,179.54,19.4941]
[1730214434812,0.2,179.55,179.54,31.20008487]
[1730214435216,0.1,179.55,179.54,31.20008487]
[1730214435516,0.2,179.55,179.54,31.20008487]
[1730214435933,0.2,179.56,179.54,31.20008487]
[1730214436205,0.2,179.56,179.55,11.70598487]
[1730214436597,0.1,179.57,179.55,11.70598487]
[1730214436925,0.2,179.57,179.56,11.70598487]
[1730214437811,11.70598487,179.61,179.56,11.70598487]
[1730214437812,0.2,179.59,179.56,31.19798487]
[1730214438016,0.2,179.6,179.58,11.70598487]
[1730214438194,0.2,179.6,179.59,11.70598487]
[1730214438904,0.1,179.6,179.59,11.70598487]
[1730214439109,0.2,179.6,179.59,11.70598487]
[1730214440020,0.1,179.58,179.57,31.19688487]
[1730214440325,0.2,179.58,179.57,19.4909]
[1730214441020,0.2,179.58,179.57,31.19688487]
[1730214441320,0.1,179.58,179.57,31.19688487]
[1730214441611,0.2,179.59,179.57,31.19688487]
[1730214441797,0.2,179.59,179.58,11.70598487]
[1730214442197,0.2,179.59,179.58,17.27448487]
[1730214443504,0.2,179.59,179.58,5.5685]
[1730214446293,0.2,179.58,179.57,13.9221]
[1730214446500,11.90598487,179.58,179.57,19.4909]
[1730214446699,0.2,179.58,179.57,19.4909]
[1730214447136,0.2,179.58,179.57,31.19688487]
[1730214448026,0.1,179.58,179.57,31.19688487]
[1730214448201,0.2,179.58,179.57,31.19688487]
[1730214448401,0.1,179.58,179.57,31.19688487]
[1730214449523,0.1,179.61,179.57,59.04108487]
[1730214449699,0.2,179.62,179.6,11.70598487]
[1730214449900,0.2,179.62,179.61,11.70598487]
[1730214451209,0.2,179.62,179.61,17.27358487]
[1730214451706,0.2,179.62,179.61,5.5676]
[1730214453625,0.2,179.62,179.6,13.9194]
[1730214453922,0.2,179.61,179.6,13.9194]
[1730214455323,0.1,179.59,179.58,27.8427]
[1730214455508,0.1,179.6,179.58,39.54868487]
[1730214455815,0.1,179.6,179.59,11.70598487]
[1730214456011,11.70598487,179.66,179.59,11.70598487]
[1730214456012,0.1,179.64,179.59,11.70598487]
[1730214456216,0.1,179.64,179.63,11.70598487]
[1730214456527,0.1,179.63,179.62,11.70598487]
[1730214458228,0.1,179.63,179.62,17.27328487]
[1730214458702,0.2,179.63,179.62,5.5673]
[1730214460024,0.2,179.63,179.61,11.70598487]
[1730214460336,0.1,179.62,179.61,11.70598487]
[1730214460905,0.1,179.64,179.61,11.70598487]
[1730214461110,0.1,179.66,179.63,23.41196974]
[1730214461317,0.1,179.66,179.65,11.70598487]
[1730214462131,0.1,179.66,179.65,17.27228487]
[1730214470943,0.1,179.66,179.65,5.5663]
[1730214471233,0.2,179.66,179.65,17.27228487]
[1730214473242,0.2,179.66,179.64,11.70598487]
[1730214473540,0.1,179.64,179.63,11.70598487]
[1730214474542,0.1,179.64,179.63,17.27288487]
[1730214474848,0.1,179.64,179.63,31.19028487]
[1730214477842,0.2,179.64,179.63,19.4843]
[1730214478334,11.90598487,179.64,179.63,19.4843]
[1730214478641,0.2,179.59,179.58,33.4112]
[1730214478939,0.2,179.59,179.58,45.11718487]
[1730214481038,0.2,179.59,179.58,33.4112]
[1730214481539,0.2,179.59,179.58,45.11718487]
[1730214481837,0.1,179.61,179.58,59.03848487]
[1730214482024,0.1,179.61,179.6,11.70598487]
[1730214482617,0.1,179.61,179.6,31.19368487]
[1730214482840,0.1,179.63,179.6,31.19368487]
[1730214483041,0.1,179.64,179.62,11.70598487]
[1730214483220,0.1,179.64,179.63,11.70598487]
[1730214483545,0.1,179.65,179.6,59.03328487]
[1730214483546,0.1,179.61,179.6,59.03328487]
[1730214484436,0.1,179.61,179.6,47.3273]
[1730214484437,0.2,179.61,179.6,47.3273]
[1730214485919,11.90598487,179.61,179.6,47.3273]
[1730214486131,0.2,179.61,179.6,47.3273]
[1730214486321,0.2,179.61,179.6,59.03328487]
[1730214486529,0.2,179.61,179.6,47.3273]
[1730214486729,11.90598487,179.61,179.6,13.9198]
[1730214486936,0.1,179.54,179.53,13.9252]
[1730214488938,0.1,179.54,179.53,19.4952]
[1730214489623,0.1,179.54,179.53,31.20118487]
[1730214495055,0.2,179.54,179.53,19.4952]
[1730214495728,11.90598487,179.54,179.53,13.9252]
[1730214496437,0.1,179.47,179.46,33.4333]
[1730214496639,0.2,179.47,179.46,33.4333]
[1730214497952,0.2,179.47,179.46,27.8611]
[1730214498448,0.2,179.46,179.45,13.9311]
[1730214498650,11.90598487,179.46,179.45,13.9311]
[1730214498948,35.68286887,179.46,179.45,13.9311]
[1730214499249,0.2,179.39,179.38,11.70598487]
[1730214499440,0.1,179.38,179.37,11.70598487]
[1730214499859,0.1,179.38,179.37,17.28098487]
[1730214500437,0.1,179.38,179.37,5.575]
[1730214500642,0.2,179.38,179.37,5.575]
[1730214501052,11.90598487,179.38,179.37,5.575]
[1730214501254,0.2,179.38,179.37,5.575]
[1730214501626,0.1,179.38,179.37,5.575]
[1730214501834,0.2,179.38,179.37,5.575]
[1730214502738,0.1,179.38,179.37,5.575]
[1730214503042,0.2,179.38,179.37,11.70598487]
[1730214503248,0.1,179.38,179.37,11.70598487]
[1730214503431,0.2,179.38,179.36,11.70598487]
[1730214503659,0.1,179.37,179.35,11.70598487]
[1730214503959,0.1,179.36,179.35,11.70598487]
[1730214504753,0.1,179.36,179.35,17.28158487]
[1730214504958,0.2,179.36,179.35,17.28158487]
[1730214505261,0.2,179.36,179.35,5.5756]
[1730214505754,0.2,179.36,179.35,17.28158487]
[1730214508845,0.1,179.36,179.35,17.28158487]
[1730214509353,0.2,179.36,179.35,17.28158487]
[1730214509660,0.1,179.36,179.35,17.28158487]
[1730214513566,0.1,179.36,179.35,31.22078487]
[1730214513782,0.1,179.37,179.35,31.22078487]
[1730214513952,0.1,179.36,179.35,19.5148]
[1730214514275,0.1,179.36,179.35,31.22078487]
[1730214514665,0.1,179.37,179.35,31.22078487]
[1730214514874,0.1,179.37,179.36,11.70598487]
[1730214515176,0.1,179.37,179.36,23.41196974]
[1730214515545,0.1,179.39,179.36,23.41196974]
[1730214515860,0.1,179.39,179.35,54.05285344]
[1730214515861,0.1,179.39,179.38,11.70598487]
[1730214516963,0.1,179.39,179.38,17.28068487]
[1730214517468,0.2,179.43,179.38,31.21748487]
[1730214517771,0.1,179.43,179.38,19.5115]
[1730214517950,0.1,179.43,179.38,47.3852]
[1730214518278,0.1,179.43,179.42,11.70598487]
[1730214519067,0.1,179.43,179.42,17.27948487]
[1730214519448,0.2,179.43,179.42,5.5735]
[1730214520964,0.2,179.42,179.41,13.9342]
[1730214521166,28.38018487,179.42,179.41,13.9342]
[1730214521473,16.6742,179.42,179.41,13.9342]
[1730214521665,28.38018487,179.42,179.41,13.9342]
[1730214522767,0.1,179.38,179.37,17.28098487]
[1730214523669,0.1,179.38,179.37,31.21858487]
[1730214529698,0.2,179.38,179.37,31.21858487]
[1730214531588,0.2,179.38,179.37,19.5126]
[1730214531762,0.1,179.38,179.37,31.21858487]
[1730214531965,0.2,179.38,179.37,31.21858487]
[1730214534286,0.1,179.38,179.37,19.5126]
[1730214534487,0.2,179.38,179.37,19.5126]
[1730214535493,0.1,179.38,179.37,31.21858487]
[1730214535796,0.2,179.38,179.37,31.21858487]
[1730214536296,0.2,179.38,179.37,59.09388487]
[1730214538483,0.2,179.38,179.37,47.3879]
[1730214539980,0.2,179.38,179.37,19.5126]
[1730214541376,0.2,179.32,179.31,13.9423]
[1730214542275,0.2,179.3,179.29,5.5775]
[1730214542475,0.2,179.29,179.28,19.5224]
[1730214543186,0.2,179.29,179.28,31.22838487]
[1730214545373,0.1,179.31,179.28,42.93436974]
[1730214545583,0.2,179.3,179.28,31.22838487]
[1730214545781,0.1,179.3,179.28,19.5224]
[1730214546005,0.2,179.3,179.28,19.5224]
[1730214546174,0.1,179.3,179.28,19.5224]
[1730214546374,0.2,179.3,179.29,11.70598487]
[1730214547095,0.1,179.3,179.29,11.70598487]
[1730214547281,0.1,179.31,179.29,11.70598487]
[1730214547482,0.2,179.31,179.3,11.70598487]
[1730214548416,0.1,179.31,179.3,11.70598487]
[1730214548791,0.2,179.31,179.3,17.28318487]
[1730214548984,0.1,179.33,179.3,59.11248487]
[1730214549190,0.1,179.33,179.32,11.70598487]
[1730214549400,0.1,179.34,179.32,11.70598487]
[1730214549596,0.1,179.33,179.3,47.4065]
[1730214550884,0.2,179.35,179.32,11.70598487]
[1730214551091,0.2,179.35,179.34,11.70598487]
[1730214551386,0.1,179.35,179.34,11.70598487]
[1730214551710,0.2,179.34,179.33,11.70598487]
[1730214552682,0.1,179.34,179.33,11.70598487]
[1730214552887,0.2,179.34,179.33,17.28228487]
[1730214553511,0.1,179.34,179.33,17.28228487]
[1730214554005,0.2,179.34,179.33,17.28228487]
[1730214554317,0.1,179.34,179.33,17.28228487]
[1730214554495,0.1,179.35,179.33,31.22298487]
[1730214554699,0.1,179.35,179.34,11.70598487]
[1730214555008,0.2,179.35,179.34,17.28198487]
[1730214555208,0.1,179.35,179.34,31.22198487]
[1730214555394,0.2,179.35,179.34,31.22198487]
[1730214556706,0.1,179.35,179.34,31.22198487]
[1730214556894,0.2,179.35,179.34,31.22198487]
[1730214560610,0.2,179.35,179.34,19.516]
[1730214561694,0.2,179.35,179.34,31.22198487]
[1730214562716,0.2,179.35,179.33,11.70598487]
[1730214562921,0.1,179.34,179.33,11.70598487]
[1730214563420,0.2,179.33,179.31,11.70598487]
[1730214563714,0.1,179.32,179.31,11.70598487]
[1730214565215,0.1,179.32,179.31,17.28288487]
[1730214565717,0.1,179.32,179.31,31.22518487]
[1730214566597,0.1,179.33,179.31,31.22518487]
[1730214566800,0.2,179.33,179.32,11.70598487]
[1730214567601,0.1,179.33,179.31,25.64828487]
[1730214567799,0.2,179.32,179.31,31.22518487]
[1730214568199,0.2,179.32,179.31,19.5192]
[1730214569621,0.2,179.32,179.31,13.9423]
[1730214572509,30.2,179.32,179.31,13.9423]
[1730214573416,0.2,179.32,179.31,13.9423]
[1730214575002,0.2,179.32,179.31,21.47164788]
[1730214575194,0.2,179.32,179.31,19.5192]
[1730214575395,0.2,179.32,179.31,27.04854788]
[1730214576209,0.2,179.32,179.31,19.5192]
[1730214577225,0.2,179.32,179.29,27.8877]
[1730214578408,0.2,179.32,179.29,35.41704788]
[1730214578598,0.1,179.3,179.29,35.41704788]
[1730214578798,0.2,179.3,179.29,35.41704788]
[1730214580116,0.2,179.3,179.29,40.99454788]
[1730214581122,0.1,179.3,179.29,40.99454788]
[1730214581431,0.2,179.3,179.29,40.99454788]
[1730214584530,0.2,179.3,179.29,33.4652]
[1730214585439,0.2,179.3,179.29,40.99454788]
[1730214586842,0.1,179.3,179.29,40.99454788]
[1730214587023,0.2,179.3,179.29,40.99454788]
[1730214592128,0.2,179.3,179.29,5.5775]
[1730214592337,0.2,179.3,179.29,13.10684788]
[1730214593346,0.1,179.27,179.26,13.9462]
[1730214593641,0.1,179.27,179.26,74.94634788]
[1730214594020,0.2,179.27,179.26,74.94634788]
[1730214595041,0.1,179.27,179.26,74.94634788]
[1730214595254,0.2,179.27,179.26,74.94634788]
[1730214598446,0.1,179.27,179.26,74.94634788]
[1730214598761,0.2,179.28,179.26,74.94634788]
[1730214599050,0.2,179.28,179.27,7.52934788]
[1730214600130,0.2,179.28,179.27,13.10744788]
[1730214601151,0.1,179.28,179.27,13.10744788]
[1730214601331,0.2,179.28,179.27,13.10744788]
[1730214601531,0.1,179.28,179.27,13.10744788]
[1730214601743,0.2,179.28,179.27,13.10744788]
[1730214603645,0.2,179.28,179.27,5.5781]
[1730214607358,0.2,179.28,179.27,13.10744788]
[1730214608108,0.1,179.3,179.28,20.0]
[1730214608239,0.1,179.3,179.29,27.52934788]
[1730214608569,0.1,179.31,179.27,25.16899503]
[1730214608570,0.1,179.28,179.27,39.5235]
[1730214609734,0.1,179.32,179.28,20.0]
[1730214609940,0.1,179.32,179.31,7.52934788]
[1730214611372,0.2,179.32,179.31,13.10624788]
[1730214612970,0.2,179.32,179.31,5.5769]
[1730214613263,7.72934788,179.32,179.31,5.5769]
[1730214614660,0.1,179.28,179.27,75.3051]
[1730214615447,0.2,179.28,179.27,47.4143]
[1730214616054,0.2,179.28,179.27,54.94364788]
[1730214616261,23.35294788,179.32,179.27,54.94364788]
[1730214616262,0.1,179.29,179.27,54.94364788]
[1730214616449,6.5894,179.34,179.27,81.3622617]
[1730214616646,6.5894,179.34,179.32,19.5181]
[1730214616840,37.52934788,179.33,179.32,19.5181]
[1730214617059,30.0,179.33,179.32,19.5181]
[1730214617360,14.11874788,179.34,179.32,19.5181]
[1730214617566,7.52934788,179.33,179.32,19.5181]
[1730214617747,37.52934788,179.33,179.32,13.9415]
[1730214617951,61.30623188,179.33,179.32,13.9415]
[1730214618541,37.52934788,179.33,179.28,7.52934788]
[1730214618747,37.52934788,179.33,179.29,19.5213]
[1730214619779,7.52934788,179.32,179.29,13.9438]
[1730214619955,37.52934788,179.33,179.29,13.9438]
[1730214620860,37.52934788,179.33,179.29,19.5213]
[1730214621651,7.52934788,179.32,179.29,19.5213]
[1730214622055,7.62934788,179.3,179.26,19.5246]
[1730214622249,7.52934788,179.27,179.25,0.5698535]
[1730214622556,7.52934788,179.27,179.25,20.0955535]
[1730214624273,7.52934788,179.28,179.25,20.0955535]
[1730214624580,31.40623188,179.3,179.25,27.62490138]
[1730214625086,7.52934788,179.29,179.25,20.0955535]
[1730214625261,7.52934788,179.28,179.25,20.0955535]
[1730214625764,31.30623188,179.27,179.25,20.0955535]
[1730214625967,7.52934788,179.29,179.25,20.0955535]
[1730214626172,23.876884,179.3,179.25,20.0955535]
[1730214626173,7.52934788,179.28,179.25,20.0955535]
[1730214626672,11.77018096,179.28,179.25,20.0955535]
[1730214626872,11.77018096,179.27,179.25,20.0955535]
[1730214627263,11.77018096,179.26,179.25,20.0955535]
[1730214627471,11.77018096,179.27,179.25,20.0955535]
[1730214627966,52.07556496,179.26,179.25,0.5698535]
[1730214628178,0.1,179.22,179.21,13.9495]
[1730214628379,35.64706496,179.22,179.21,13.9495]
[1730214629289,23.776884,179.22,179.18,0.0268867]
[1730214629460,11.77018096,179.2,179.18,0.0268867]
[1730214629659,11.77018096,179.19,179.18,0.0268867]
[1730214634291,35.54706496,179.19,179.18,0.0268867]
[1730214635389,11.77018096,179.19,179.18,0.0268867]
[1730214635886,11.77018096,179.21,179.18,0.0268867]
[1730214636458,11.77018096,179.2,179.18,0.0268867]
[1730214639691,11.77018096,179.21,179.18,0.0268867]
[1730214639993,11.77018096,179.22,179.18,0.0268867]
[1730214640281,11.77018096,179.25,179.2,11.77018096]
[1730214640591,11.77018096,179.29,179.24,11.77018096]
[1730214640889,11.77018096,179.28,179.23,11.77018096]
[1730214641368,11.77018096,179.27,179.22,11.77018096]
[1730214641774,11.77018096,179.28,179.23,39.66728096]
[1730214642677,28.18748096,179.31,179.26,11.77018096]
[1730214642878,11.77018096,179.31,179.26,11.77018096]
[1730214643281,11.77018096,179.3,179.25,11.77018096]
[1730214643479,11.77018096,179.31,179.26,11.77018096]
[1730214643787,11.77018096,179.32,179.27,59.18448096]
[1730214644391,11.77018096,179.33,179.28,11.77018096]
[1730214645284,11.77018096,179.32,179.27,59.18448096]
[1730214645485,11.77018096,179.33,179.28,11.77018096]
[1730214645871,11.77018096,179.33,179.29,19.5213]
[1730214646577,11.77018096,179.32,179.29,19.5213]
[1730214647486,11.77018096,179.31,179.29,19.5213]
[1730214648075,11.77018096,179.31,179.27,27.8908]
[1730214649672,27.95848096,179.35,179.3,11.77018096]
[1730214649885,5.8108833,179.37,179.33,11.77018096]
[1730214650095,11.77018096,179.37,179.32,11.77018096]
[1730214650478,11.77018096,179.36,179.31,11.77018096]
[1730214651372,11.77018096,179.37,179.32,11.77018096]
[1730214651578,11.77018096,179.33,179.27,47.4143]
[1730214651786,11.77018096,179.28,179.27,47.4143]
[1730214651974,11.77018096,179.29,179.27,47.4143]
[1730214652178,11.77018096,179.28,179.27,47.4143]
[1730214652578,11.77018096,179.28,179.27,27.8908]
[1730214653297,11.77018096,179.31,179.27,27.8908]
[1730214653496,11.77018096,179.32,179.27,39.66098096]
[1730214653952,11.77018096,179.31,179.27,27.8908]
[1730214654690,11.77018096,179.31,179.27,47.4143]
[1730214654893,11.77018096,179.32,179.27,59.18448096]
[1730214656980,23.876884,179.36,179.27,27.8908]
[1730214656981,11.77018096,179.31,179.27,27.8908]
[1730214658207,11.77018096,179.31,179.27,47.4143]
[1730214659703,11.77018096,179.3,179.27,47.4143]
[1730214659885,11.77018096,179.28,179.27,19.5235]
[1730214660087,0.2,179.35,179.27,19.5235]
[1730214660307,11.77018096,179.28,179.27,19.5235]
[1730214660491,11.77018096,179.28,179.22,27.8985]
[1730214660705,11.77018096,179.26,179.24,13.9475]
[1730214660995,11.77018096,179.25,179.24,13.9475]
[1730214661318,11.77018096,179.26,179.24,13.9475]
[1730214661906,21.6019,179.31,179.24,13.9475]
[1730214661907,11.77018096,179.28,179.24,13.9475]
[1730214662109,11.77018096,179.29,179.24,25.71768096]
[1730214662784,11.77018096,179.3,179.25,11.77018096]
[1730214663113,11.77018096,179.31,179.26,11.77018096]
[1730214663290,11.77018096,179.3,179.25,11.77018096]
[1730214663600,11.77018096,179.31,179.26,11.77018096]
[1730214664008,11.77018096,179.33,179.28,11.77018096]
[1730214664509,11.77018096,179.32,179.27,11.77018096]
[1730214664808,11.77018096,179.33,179.28,11.77018096]
[1730214665004,11.77018096,179.32,179.27,11.77018096]
[1730214665308,11.77018096,179.32,179.23,15.4539]
[1730214665309,11.77018096,179.32,179.26,11.77018096]
[1730214665509,11.77018096,179.3,179.25,11.77018096]
[1730214665891,11.77018096,179.3,179.26,47.417]
[1730214666092,11.77018096,179.29,179.26,47.417]
[1730214666415,11.77018096,179.3,179.26,47.417]
[1730214666588,11.77018096,179.31,179.26,59.18718096]
[1730214667611,11.77018096,179.3,179.26,41.8386]
[1730214668592,11.77018096,179.28,179.26,41.8386]
[1730214668804,11.77018096,179.29,179.26,13.9462]
[1730214669110,11.77018096,179.27,179.26,13.9462]
[1730214669406,11.77018096,179.28,179.26,13.9462]
[1730214672419,11.77018096,179.27,179.26,13.9462]
[1730214673899,11.77018096,179.27,179.24,27.8955]
[1730214674135,11.77018096,179.25,179.24,27.8955]
[1730214675819,11.77018096,179.26,179.24,27.8955]
[1730214676423,11.77018096,179.25,179.24,27.8955]
[1730214676921,11.77018096,179.26,179.24,27.8955]
[1730214677919,11.77018096,179.27,179.24,27.8955]
[1730214681222,11.77018096,179.26,179.24,27.8955]
[1730214681617,11.77018096,179.25,179.24,27.8955]
[1730214681917,11.77018096,179.25,179.23,19.5279]
[1730214682117,11.77018096,179.26,179.23,19.5279]
[1730214682314,11.77018096,179.27,179.23,19.5279]
[1730214682502,11.77018096,179.27,179.23,31.29808096]
[1730214682820,7.53403882,179.27,179.23,27.06193882]
[1730214683601,7.53403882,179.29,179.24,7.53403882]
[1730214684700,7.53403882,179.28,179.25,19.5258]
[1730214685105,11.77071484,179.28,179.25,19.5258]
[1730214685407,11.77071484,179.29,179.25,19.5258]
[1730214686213,11.77071484,179.31,179.26,11.77071484]
[1730214686917,11.77071484,179.3,179.25,59.19051484]
[1730214687228,11.77071484,179.33,179.28,11.77071484]
[1730214687405,11.77071484,179.32,179.27,11.77071484]